[Event "VIII Iberoamericano Mexico 2022"]
[Site "Mexico City"]
[Date "2022.02.18"]
[Round "7.21"]
[White "Luna Javier, Edgar Froylan"]
[Black "Garcia Guerrero, Isaac Antonio"]
[Result "1-0"]
[ECO "A46"]
[WhiteElo "2148"]
[BlackElo "2338"]
[Annotator "NA"]
[PlyCount "137"]
[EventDate "2022.02.12"]
[EventType "swiss"]
[EventCountry "MEX"]
[SourceTitle "playchess.com"]
[Source "ChessBase"]
[SourceQuality "1"]
[TimeControl "5400+30"]

1. Nf3 {[%emt 0:05:50]} Nf6 {[%emt 0:00:17]} 2. d4 {[%emt 0:01:38]} e6 {[%emt 0:00:25]} 3. g3 {[%emt 0:00:25]} b5 {[%emt 0:00:21]} 4. Bg2 {[%emt 0:00:23]} Bb7 {[%emt 0:02:05]} 5. O-O {[%emt 0:00:57]} c5 {[%emt 0:00:32]} 6. a4 {[%emt 0:02:04]} b4 {[%emt 0:00:33]} 7. a5 {[%emt 0:02:23]} Na6 {[%emt 0:00:59]} 8. c3 {[%emt 0:01:54]} Be7 {[%emt 0:01:46]} 9. dxc5 {[%emt 0:05:19]} Bxc5 {[%emt 0:01:40]} 10. cxb4 {[%emt 0:01:52]} Nxb4 {[%emt 0:07:21]} 11. Nc3 {[%emt 0:01:09]} O-O {[%emt 0:03:47]} 12. Bg5 {[%emt 0:07:32]} d5 {[%emt 0:09:23]} 13. Ne5 {[%emt 0:03:03]} Rb8 {[%emt 1:07:51]} 14. Bxf6 gxf6 {[%emt 0:00:00]} 15. Nd3 Nxd3 {[%emt 0:00:00]} 16. Qxd3 {[%emt 0:17:05]} Qd6 {[%emt 0:00:00]} 17. Ra4 {[%emt 0:03:46]} f5 {[%emt 0:00:00]} 18. Rh4 {[%emt 0:07:37]} f6 {[%emt 0:00:00]} 19. Rd1 {[%emt 0:09:47]} Rf7 {[%emt 0:00:00]} 20. Nb5 {[%emt 0:09:01]} Qe5 {[%emt 0:00:00]} 21. Nd4 {[%emt 0:19:15]} Rc7 {[%emt 0:00:00]} 22. b4 {[%emt 0:00:00]} Bxd4 {[%emt 0:00:00]} 23. Rxd4 {[%emt 0:00:00]} Bc6 {[%emt 0:00:00]} 24. e3 {[%emt 0:00:00]} Bb5 {[%emt 0:00:00]} 25. Qb3 {[%emt 0:00:00]} Bc4 {[%emt 0:00:00]} 26. Qa4 {[%emt 0:00:00]} Qd6 {[%emt 0:00:00]} 27. Rb1 {[%emt 0:00:00]} a6 {[%emt 0:00:00]} 28. Bf1 {[%emt 0:00:00]} Bb5 {[%emt 0:00:00]} 29. Qa1 {[%emt 0:00:00]} Qc6 {[%emt 0:00:00]} 30. Rdd1 {[%emt 0:00:00]} Qc3 {[%emt 0:00:00]} 31. Qxc3 {[%emt 0:00:01]} Rxc3 {[%emt 0:00:00]} 32. Rdc1 {[%emt 0:00:21]} Rxc1 {[%emt 0:01:07]} 33. Rxc1 {[%emt 0:00:01]} Kf7 {[%emt 0:01:33]} 34. Rc7+ {[%emt 0:00:23]} Kg6 {[%emt 0:01:15]} 35. Bxb5 {[%emt 0:00:41]} Rxb5 {[%emt 0:00:32]} 36. Rc6 {[%emt 0:00:10]} Rxb4 {[%emt 0:00:19]} 37. Rxe6 {[%emt 0:00:13]} d4 {[%emt 0:00:20]} 38. exd4 {[%emt 0:00:21]} Rxd4 {[%emt 0:00:06]} 39. Kg2 {[%emt 0:01:09]} f4 {[%emt 0:00:25]} 40. Rxa6 {[%emt 0:01:39]} fxg3 {[%emt 0:00:09]} 41. hxg3 {[%emt 0:00:08]} Ra4 {[%emt 0:01:51]} 42. Ra8 {[%emt 0:00:16]} Ra3 {[%emt 0:01:17]} 43. a6 {[%emt 0:00:06]} Kf5 {[%emt 0:00:26]} 44. Kh3 {[%emt 0:00:49]} Ra2 {[%emt 0:00:41]} 45. a7 {[%emt 0:00:56]} Ra3 {[%emt 0:01:00]} 46. Kh4 {[%emt 0:00:33]} Ra1 {[%emt 0:00:30]} 47. Kh3 {[%emt 0:00:14]} Ra3 {[%emt 0:00:30]} 48. Kg2 {[%emt 0:00:13]} Ra2 {[%emt 0:00:39]} 49. Kf3 {[%emt 0:00:06]} Ra3+ {[%emt 0:00:06]} 50. Ke2 {[%emt 0:00:06]} Ra2+ {[%emt 0:00:17]} 51. Ke3 {[%emt 0:00:07]} Ra3+ {[%emt 0:00:39]} 52. Kd4 {[%emt 0:00:20]} Ra5 {[%emt 0:01:58]} 53. Kc4 {[%emt 0:00:25]} Ra2 {[%emt 0:00:39]} 54. Kd5 {[%emt 0:00:29]} Rd2+ {[%emt 0:00:31]} 55. Kc5 {[%emt 0:00:14]} Ra2 {[%emt 0:00:28]} 56. Kd6 {[%emt 0:00:20]} Ra6+ {[%emt 0:00:31]} 57. Ke7 {[%emt 0:00:11]} h5 {[%emt 0:00:38]} 58. Kf7 {[%emt 0:00:09]} Ra2 {[%emt 0:01:06]} 59. Kg7 {[%emt 0:00:36]} Ra4 {[%emt 0:00:28]} 60. f3 {[%emt 0:01:46]} Ra6 {[%emt 0:01:58]} 61. Kf7 {[%emt 0:00:21]} Ra3 {[%emt 0:01:29]} 62. g4+ {[%emt 0:00:50]} hxg4 {[%emt 0:00:13]} 63. fxg4+ {[%emt 0:00:01]} Kf4 {[%emt 0:00:39]} 64. Kxf6 {[%emt 0:00:23]} Ra1 {[%emt 0:00:29]} 65. Kf7 {[%emt 0:00:21]} Ra2 {[%emt 0:00:34]} 66. g5 {[%emt 0:00:16]} Kf5 {[%emt 0:00:09]} 67. g6 {[%emt 0:00:14]} Rc2 {[%emt 0:00:41]} 68. Rf8 {[%emt 0:00:17]} Rc7+ {[%emt 0:00:29]} 69. Ke8+ {[%emt 0:00:01]} 1-0

[Event "VIII Iberoamericano Mexico 2022"]
[Site "Mexico City"]
[Date "2022.02.18"]
[Round "7.22"]
[White "Perez Rodriguez, Luis Manuel"]
[Black "Pla, Silvio"]
[Result "1-0"]
[ECO "C01"]
[WhiteElo "2324"]
[BlackElo "2113"]
[Annotator "NA"]
[PlyCount "57"]
[EventDate "2022.02.12"]
[EventType "swiss"]
[EventCountry "MEX"]
[SourceTitle "playchess.com"]
[Source "ChessBase"]
[SourceQuality "1"]
[TimeControl "5400+30"]

1. e4 {[%emt 0:01:54]} e5 2. Nf3 {[%emt 0:00:16]} Nf6 {[%emt 0:01:00]} 3. Nxe5 {[%emt 0:01:31]} d6 {[%emt 0:00:07]} 4. Nf3 {[%emt 0:00:24]} Nxe4 {[%emt 0:00:09]} 5. d3 {[%emt 0:00:36]} Nf6 {[%emt 0:00:33]} 6. d4 {[%emt 0:00:08]} d5 {[%emt 0:03:29]} 7. Bd3 {[%emt 0:00:40]} Bg4 {[%emt 0:06:51]} 8. O-O {[%emt 0:02:09]} Be7 {[%emt 0:00:43]} 9. Bg5 {[%emt 0:00:46]} h6 {[%emt 0:00:59]} 10. Bxf6 {[%emt 0:14:23]} Bxf6 {[%emt 0:00:06]} 11. Re1+ {[%emt 0:00:03]} Be7 {[%emt 0:23:56]} 12. h3 {[%emt 0:07:31]} Bxf3 {[%emt 0:02:58]} 13. Qxf3 {[%emt 0:00:08]} O-O {[%emt 0:00:05]} 14. Nd2 {[%emt 0:00:47]} Nc6 {[%emt 0:04:36]} 15. c3 {[%emt 0:01:41]} Qd6 {[%emt 0:10:22]} 16. Nf1 {[%emt 0:01:37]} Bg5 {[%emt 0:10:00]} 17. g3 {[%emt 0:04:47]} g6 {[%emt 0:02:45]} 18. h4 {[%emt 0:00:45]} Bf6 {[%emt 0:00:02]} 19. Ne3 {[%emt 0:01:25]} Ne7 20. Ng4 {[%emt 0:10:42]} Bg7 {[%emt 0:01:18]} 21. Qe3 {[%emt 0:06:25]} Rae8 {[%emt 0:15:52]} 22. Nxh6+ {[%emt 0:42:52]} Kh7 23. Ng4 Ng8 24. Qf3 f5 25. Rxe8 Rxe8 26. Ne3 Qf8 27. h5 Ne7 28. hxg6+ Kxg6 29. Qg4+ 1-0

[Event "VIII Iberoamericano Mexico 2022"]
[Site "Mexico City"]
[Date "2022.02.18"]
[Round "7.23"]
[White "Dominguez Aguilar, Guillermo"]
[Black "Fernandez Sanchez, Mario Andres"]
[Result "1-0"]
[ECO "B15"]
[WhiteElo "2321"]
[BlackElo "2093"]
[Annotator "ChessBase"]
[PlyCount "104"]
[EventDate "2022.02.12"]
[EventType "swiss"]
[EventCountry "MEX"]
[SourceTitle "playchess.com"]
[Source "ChessBase"]
[SourceQuality "1"]
[TimeControl "5400+30"]

1. e4 {[%emt 0:12:55]} c6 {[%emt 0:00:14]} 2. d4 {[%emt 0:00:56]} d5 {[%emt 0:00:05]} 3. Nc3 {[%emt 0:00:14]} dxe4 {[%emt 0:00:10]} 4. Nxe4 {[%emt 0:00:10]} Nf6 {[%emt 0:00:09]} 5. Nxf6+ {[%emt 0:00:19]} exf6 {[%emt 0:00:02]} 6. c3 {[%emt 0:00:15]} Bd6 {[%emt 0:00:18]} 7. Bd3 {[%emt 0:00:58]} O-O {[%emt 0:00:14]} 8. Ne2 {[%emt 0:00:41]} Re8 {[%emt 0:01:02]} 9. Qc2 {[%emt 0:00:58]} h5 {[%emt 0:09:02]} 10. Be3 {[%emt 0:02:24]} Qa5 11. O-O {[%emt 0:03:18]} h4 {[%emt 0:09:32]} 12. Rfe1 Qc7 {[%emt 0:20:15]} 13. h3 Be6 {[%emt 0:10:17]} 14. c4 {[%emt 0:05:52]} Nd7 {[%emt 0:02:34]} 15. Rac1 {[%emt 0:01:11]} Nf8 16. Qd2 Ng6 {[%emt 0:04:36]} 17. Kh1 {[%emt 0:06:07]} Qd7 {[%emt 0:07:18]} 18. Ng1 {[%emt 0:01:26]} Bc7 {[%emt 0:07:56]} 19. Bxg6 {[%emt 0:00:49]} fxg6 {[%emt 0:00:17]} 20. Bf4 {[%emt 0:00:42]} Bxf4 {[%emt 0:04:52]} 21. Qxf4 {[%emt 0:00:08]} g5 {[%emt 0:00:05]} 22. Qd2 {[%emt 0:01:24]} Rad8 {[%emt 0:04:59]} 23. Nf3 {[%emt 0:00:15]} g4 {[%emt 0:08:59]} 24. hxg4 {[%emt 0:00:56]} Bxg4 {[%emt 0:00:04]} 25. Ng1 {[%emt 0:13:15]} Kf7 {[%emt 0:00:53]} 26. Rxe8 {[%emt 0:00:44]} Rxe8 {[%emt 0:00:10]} 27. d5 Re5 {[%emt 0:01:18]} 28. f3 {[%emt 0:05:01]} Bf5 {[%emt 0:01:11]} 29. Rd1 {[%emt 0:01:46]} g5 {[%emt 0:02:14]} 30. Qd4 {[%emt 0:01:20]} cxd5 {[%emt 0:01:10]} 31. cxd5 {[%emt 0:00:25]} Kg6 32. d6 {[%emt 0:03:34]} Re6 {[%emt 0:02:11]} 33. Qd5 {[%emt 0:02:46]} a6 {[%emt 0:00:37]} 34. a4 {[%emt 0:04:45]} Re5 {[%emt 0:00:19]} 35. Qg8+ {[%emt 0:08:24]} Kh6 {[%emt 0:00:01]} 36. Rd4 {[%emt 0:01:56]} Re6 {[%emt 0:01:39]} 37. Qb8 {[%emt 0:08:21]} Re8 {[%emt 0:01:11]} 38. Qa7 {[%emt 0:00:07]} Qc6 {[%emt 0:01:02]} 39. Rd2 {[%emt 0:00:14]} h3 {[%emt 0:00:42]} 40. Qd4 {[%emt 0:03:14]} hxg2+ {[%emt 0:00:33]} 41. Kxg2 {[%emt 0:00:46]} Kg6 {[%emt 0:00:20]} 42. Kg3 {[%emt 0:01:44]} Rh8 {[%emt 0:00:19]} 43. b3 {[%emt 0:02:05]} Rh1 {[%emt 0:00:32]} 44. Kg2 {[%emt 0:10:05]} Rh4 {[%emt 0:00:50]} 45. Qe3 {[%emt 0:01:18]} Rh7 {[%emt 0:01:14]} 46. Ne2 {[%emt 0:01:07]} Rd7 {[%emt 0:00:38]} 47. Qe8+ {[%emt 0:00:15]} Kg7 {[%emt 0:00:28]} 48. Nd4 {[%emt 0:00:59]} Qd5 {[%emt 0:00:04]} 49. Nxf5+ {[%emt 0:00:31]} Qxf5 {[%emt 0:00:01]} 50. Re2 {[%emt 0:00:08]} Rf7 {[%emt 0:01:00]} 51. Re7 {[%emt 0:07:40]} Qc2+ {[%emt 0:00:10]} 52. Kg3 {[%emt 0:07:41]} Qxb3 {[%emt 0:01:38]} 1-0

[Event "VIII Iberoamericano Mexico 2022"]
[Site "Mexico City"]
[Date "2022.02.18"]
[Round "7.24"]
[White "Capo Vidal, Uriel"]
[Black "Fernandez Pozas, Pablo Antonio"]
[Result "1-0"]
[ECO "D02"]
[WhiteElo "2306"]
[BlackElo "2072"]
[Annotator "NA"]
[PlyCount "61"]
[EventDate "2022.02.12"]
[EventType "swiss"]
[EventCountry "MEX"]
[SourceTitle "playchess.com"]
[Source "ChessBase"]
[SourceQuality "1"]
[TimeControl "5400+30"]

1. d4 {[%emt 0:12:09]} e6 {[%emt 0:00:10]} 2. Nf3 {[%emt 0:02:07]} Nf6 {[%emt 0:00:14]} 3. Bf4 {[%emt 0:00:12]} c5 {[%emt 0:00:22]} 4. e3 {[%emt 0:00:05]} d5 {[%emt 0:00:05]} 5. c3 {[%emt 0:01:35]} Nc6 {[%emt 0:00:13]} 6. Nbd2 {[%emt 0:00:14]} Bd6 {[%emt 0:00:44]} 7. Bg3 {[%emt 0:01:26]} O-O {[%emt 0:00:30]} 8. Bd3 {[%emt 0:00:39]} b6 {[%emt 0:00:27]} 9. Ne5 {[%emt 0:01:01]} Ne7 {[%emt 0:00:26]} 10. f4 {[%emt 0:01:59]} Bb7 {[%emt 0:02:55]} 11. Qb1 {[%emt 0:04:07]} Nf5 {[%emt 0:27:43]} 12. Bxf5 {[%emt 0:00:47]} exf5 {[%emt 0:00:03]} 13. Qxf5 Ne4 {[%emt 0:04:48]} 14. Nxe4 {[%emt 0:04:19]} dxe4 {[%emt 0:00:06]} 15. Rd1 {[%emt 0:08:05]} Qc7 {[%emt 0:04:25]} 16. Nc4 {[%emt 0:07:58]} Be7 {[%emt 0:10:30]} 17. d5 {[%emt 0:00:49]} Rad8 {[%emt 0:01:59]} 18. Qxe4 {[%emt 0:01:10]} Bf6 {[%emt 0:00:54]} 19. Qf3 {[%emt 0:03:05]} Qd7 {[%emt 0:11:28]} 20. e4 {[%emt 0:00:49]} Qa4 {[%emt 0:00:17]} 21. Ne3 {[%emt 0:01:56]} Qxa2 {[%emt 0:02:50]} 22. e5 {[%emt 0:02:12]} Qxb2 {[%emt 0:04:29]} 23. O-O {[%emt 0:00:43]} Qxc3 {[%emt 0:01:45]} 24. Be1 {[%emt 0:00:26]} Qb2 {[%emt 0:03:54]} 25. Rf2 {[%emt 0:00:17]} Bxe5 {[%emt 0:04:11]} 26. Rxb2 {[%emt 0:00:56]} Bxb2 {[%emt 0:00:03]} 27. Nf5 Rfe8 {[%emt 0:00:30]} 28. Bh4 Rd7 {[%emt 0:00:30]} 29. Rd2 Bd4+ {[%emt 0:00:30]} 30. Rxd4 cxd4 {[%emt 0:00:30]} 31. Qg4 1-0

[Event "VIII Iberoamericano Mexico 2022"]
[Site "Mexico City"]
[Date "2022.02.18"]
[Round "7.25"]
[White "Avila Bautista, Roberto Al"]
[Black "Sanchez Enriquez, Oscar Gerardo"]
[Result "0-1"]
[ECO "A24"]
[WhiteElo "2090"]
[BlackElo "2305"]
[Annotator "NA"]
[PlyCount "68"]
[EventDate "2022.02.12"]
[EventType "swiss"]
[EventCountry "MEX"]
[SourceTitle "playchess.com"]
[Source "ChessBase"]
[SourceQuality "1"]
[TimeControl "5400+30"]

1. Nf3 {[%emt 0:00:03]} g6 2. c4 {[%emt 0:01:15]} Bg7 3. Nc3 {[%emt 0:00:30]} d6 {[%emt 0:02:47]} 4. g3 {[%emt 0:00:18]} Nf6 {[%emt 0:00:51]} 5. Bg2 {[%emt 0:00:11]} O-O {[%emt 0:00:09]} 6. O-O {[%emt 0:00:11]} e5 {[%emt 0:00:05]} 7. b3 {[%emt 0:00:33]} Nh5 {[%emt 0:02:53]} 8. Bb2 {[%emt 0:07:11]} f5 {[%emt 0:04:33]} 9. e3 {[%emt 0:01:22]} c6 10. Rc1 {[%emt 0:05:27]} Re8 {[%emt 0:09:05]} 11. Qc2 {[%emt 0:05:31]} a6 12. Rfd1 {[%emt 0:08:47]} Nf6 13. Ne1 {[%emt 0:17:02]} g5 {[%emt 0:10:20]} 14. d4 {[%emt 0:01:21]} e4 {[%emt 0:02:32]} 15. b4 {[%emt 0:01:44]} d5 16. cxd5 {[%emt 0:13:35]} cxd5 {[%emt 0:01:42]} 17. Na4 {[%emt 0:00:57]} Nc6 {[%emt 0:00:20]} 18. a3 {[%emt 0:00:28]} f4 {[%emt 0:01:32]} 19. Bf1 Rf8 {[%emt 0:05:51]} 20. Qc5 {[%emt 0:13:50]} fxe3 {[%emt 0:01:32]} 21. fxe3 {[%emt 0:00:03]} Ng4 {[%emt 0:00:45]} 22. Ng2 {[%emt 0:02:00]} Be6 {[%emt 0:04:00]} 23. Be2 {[%emt 0:02:39]} Rf3 {[%emt 0:05:04]} 24. Nb6 {[%emt 0:04:34]} Bf8 {[%emt 0:00:58]} 25. Bxf3 exf3 {[%emt 0:00:30]} 26. Qc3 Qxb6 {[%emt 0:00:30]} 27. h3 Nf6 {[%emt 0:00:30]} 28. Rf1 Ne4 {[%emt 0:00:30]} 29. Qc2 fxg2 {[%emt 0:00:30]} 30. Qxg2 Bd6 {[%emt 0:00:30]} 31. Rf3 g4 {[%emt 0:00:30]} 32. hxg4 Bxg4 {[%emt 0:00:30]} 33. Rcf1 Qd8 {[%emt 0:00:30]} 34. Bc3 Qg5 {[%emt 0:00:30]} 0-1

[Event "VIII Iberoamericano Mexico 2022"]
[Site "Mexico City"]
[Date "2022.02.18"]
[Round "7.26"]
[White "Herrera Ortiz, Miguel"]
[Black "Ortiz Verdezoto, Anahi"]
[Result "1-0"]
[ECO "C92"]
[WhiteElo "2297"]
[BlackElo "2047"]
[Annotator "ChessBase"]
[PlyCount "104"]
[EventDate "2022.02.12"]
[EventType "swiss"]
[EventCountry "MEX"]
[SourceTitle "playchess.com"]
[Source "ChessBase"]
[SourceQuality "1"]
[TimeControl "5400+30"]

1. e4 {[%emt 0:02:47]} e5 {[%emt 0:00:12]} 2. Nf3 {[%emt 0:00:27]} Nc6 {[%emt 0:00:12]} 3. Bb5 {[%emt 0:00:12]} a6 4. Ba4 {[%emt 0:00:15]} Nf6 {[%emt 0:00:29]} 5. O-O {[%emt 0:00:12]} Be7 {[%emt 0:00:10]} 6. Re1 {[%emt 0:00:29]} b5 {[%emt 0:00:30]} 7. Bb3 {[%emt 0:00:12]} d6 {[%emt 0:00:07]} 8. c3 {[%emt 0:00:19]} O-O {[%emt 0:00:37]} 9. h3 {[%emt 0:00:13]} Bb7 {[%emt 0:00:40]} 10. d4 {[%emt 0:00:23]} Re8 {[%emt 0:00:46]} 11. Nbd2 {[%emt 0:00:20]} Bf8 {[%emt 0:00:31]} 12. a3 {[%emt 0:00:31]} Nb8 {[%emt 0:02:39]} 13. Ng5 {[%emt 0:03:06]} Re7 {[%emt 0:03:10]} 14. Ndf3 {[%emt 0:00:49]} exd4 15. Nxf7 {[%emt 0:10:36]} Rxf7 {[%emt 0:15:37]} 16. Ng5 {[%emt 0:00:19]} d5 {[%emt 0:02:22]} 17. e5 {[%emt 0:01:12]} Re7 {[%emt 0:04:17]} 18. exf6 {[%emt 0:04:39]} Rxe1+ {[%emt 0:00:06]} 19. Qxe1 {[%emt 0:00:14]} Qxf6 {[%emt 0:00:59]} 20. cxd4 {[%emt 0:03:15]} Qe7 {[%emt 0:08:36]} 21. Bf4 {[%emt 0:02:59]} Nd7 {[%emt 0:03:59]} 22. Qc3 {[%emt 0:12:57]} Re8 {[%emt 0:05:06]} 23. Qxc7 {[%emt 0:03:52]} Ba8 {[%emt 0:04:47]} 24. Nf3 Qf7 {[%emt 0:04:29]} 25. Bd6 {[%emt 0:07:56]} Bxd6 {[%emt 0:14:34]} 26. Qxd6 {[%emt 0:00:57]} Qe6 {[%emt 0:01:57]} 27. Qxe6+ {[%emt 0:01:10]} Rxe6 {[%emt 0:00:02]} 28. Kf1 {[%emt 0:04:36]} Nb6 29. Bc2 {[%emt 0:02:32]} g6 {[%emt 0:08:08]} 30. Bd3 {[%emt 0:03:31]} Nc4 {[%emt 0:03:06]} 31. b3 {[%emt 0:03:08]} Na5 32. Rc1 {[%emt 0:02:00]} Bc6 {[%emt 0:03:30]} 33. Ne5 {[%emt 0:01:41]} Be8 {[%emt 0:01:29]} 34. Bc2 {[%emt 0:01:30]} Nc6 {[%emt 0:02:18]} 35. Nf3 {[%emt 0:00:16]} Rf6 {[%emt 0:03:04]} 36. Re1 {[%emt 0:02:45]} Bf7 {[%emt 0:00:03]} 37. Re3 {[%emt 0:00:36]} Rf4 {[%emt 0:00:58]} 38. g3 {[%emt 0:00:34]} Rf6 {[%emt 0:00:15]} 39. Kg2 {[%emt 0:04:47]} b4 {[%emt 0:00:20]} 40. axb4 {[%emt 0:02:06]} Nxb4 {[%emt 0:00:05]} 41. Bd1 {[%emt 0:00:28]} Nc6 {[%emt 0:04:15]} 42. Be2 {[%emt 0:00:54]} Kg7 {[%emt 0:00:07]} 43. Rc3 {[%emt 0:07:46]} h6 {[%emt 0:03:53]} 44. h4 {[%emt 0:02:44]} Be8 {[%emt 0:01:39]} 45. Bxa6 {[%emt 0:01:46]} Nxd4 {[%emt 0:01:22]} 46. Rc7+ {[%emt 0:00:15]} Kf8 {[%emt 0:00:42]} 47. Nxd4 {[%emt 0:00:20]} Rxa6 {[%emt 0:00:02]} 48. Kf3 {[%emt 0:00:36]} Rb6 {[%emt 0:00:51]} 49. Ke3 {[%emt 0:01:06]} g5 {[%emt 0:00:07]} 50. hxg5 {[%emt 0:00:42]} hxg5 {[%emt 0:00:02]} 51. f3 {[%emt 0:00:35]} Bf7 {[%emt 0:01:23]} 52. Kd3 {[%emt 0:00:26]} g4 {[%emt 0:01:57]} 1-0

[Event "VIII Iberoamericano Mexico 2022"]
[Site "Mexico City"]
[Date "2022.02.18"]
[Round "7.27"]
[White "Rosales Campos, Paul"]
[Black "Sandoval Mercado, Carlos"]
[Result "1/2-1/2"]
[ECO "B87"]
[WhiteElo "2039"]
[BlackElo "2289"]
[Annotator "NA"]
[PlyCount "70"]
[EventDate "2022.02.12"]
[EventType "swiss"]
[EventCountry "MEX"]
[SourceTitle "playchess.com"]
[Source "ChessBase"]
[SourceQuality "1"]
[TimeControl "5400+30"]

1. e4 {[%emt 0:00:17]} c5 {[%emt 0:00:07]} 2. Nf3 {[%emt 0:00:23]} d6 {[%emt 0:00:03]} 3. d4 {[%emt 0:00:31]} cxd4 {[%emt 0:00:05]} 4. Nxd4 {[%emt 0:00:26]} Nf6 {[%emt 0:00:06]} 5. Nc3 {[%emt 0:00:29]} a6 {[%emt 0:00:50]} 6. Bc4 {[%emt 0:00:34]} e6 {[%emt 0:00:22]} 7. Bb3 {[%emt 0:00:27]} b5 {[%emt 0:03:28]} 8. Bg5 {[%emt 0:01:20]} Be7 {[%emt 0:00:27]} 9. Qf3 {[%emt 0:01:04]} Qc7 {[%emt 0:03:17]} 10. Bxf6 {[%emt 0:02:42]} Bxf6 {[%emt 0:27:49]} 11. e5 {[%emt 0:03:03]} Bxe5 {[%emt 0:00:02]} 12. Qxa8 {[%emt 0:00:39]} Bxd4 {[%emt 0:00:08]} 13. Qf3 {[%emt 0:00:56]} Bb7 {[%emt 0:05:07]} 14. Qg3 {[%emt 0:01:22]} O-O {[%emt 0:03:48]} 15. O-O-O {[%emt 0:00:43]} Nc6 {[%emt 0:14:51]} 16. Ne4 {[%emt 0:12:08]} Be5 {[%emt 0:38:00]} 17. f4 {[%emt 0:12:08]} Nd4 {[%emt 0:00:00]} 18. Rhe1 {[%emt 0:09:52]} Nxb3+ {[%emt 0:00:00]} 19. axb3 {[%emt 0:01:13]} Bxe4 {[%emt 0:00:00]} 20. Rxe4 {[%emt 0:01:06]} Bf6 {[%emt 0:00:00]} 21. Re2 {[%emt 0:06:24]} a5 {[%emt 0:00:00]} 22. Qd3 {[%emt 0:04:06]} d5 {[%emt 0:00:00]} 23. f5 {[%emt 0:05:49]} exf5 {[%emt 0:00:00]} 24. Qxb5 {[%emt 0:01:57]} d4 {[%emt 0:00:00]} 25. Re8 {[%emt 0:01:53]} g6 {[%emt 0:00:00]} 26. h3 {[%emt 0:04:23]} Rxe8 {[%emt 0:00:00]} 27. Qxe8+ {[%emt 0:00:06]} Kg7 {[%emt 0:00:00]} 28. Kb1 {[%emt 0:01:02]} h5 {[%emt 0:00:00]} 29. Qe2 {[%emt 0:01:30]} h4 {[%emt 0:00:00]} 30. Rd3 {[%emt 0:02:09]} Qf4 {[%emt 0:00:00]} 31. Rf3 {[%emt 0:03:01]} Qd6 {[%emt 0:00:00]} 32. Rd3 {[%emt 0:09:50]} Qh2 {[%emt 0:00:00]} 33. Rf3 {[%emt 0:03:47]} Qg1+ {[%emt 0:00:00]} 34. Ka2 {[%emt 0:00:50]} Qh2 {[%emt 0:00:00]} 35. Kb1 {[%emt 0:00:49]} Qg1+ {[%emt 0:00:00]} 1/2-1/2

[Event "VIII Iberoamericano Mexico 2022"]
[Site "Mexico City"]
[Date "2022.02.18"]
[Round "7.28"]
[White "Medina Diaz, Rafael Alejandro"]
[Black "Montes Orozco, Miguel Angel"]
[Result "1/2-1/2"]
[ECO "C78"]
[WhiteElo "2287"]
[BlackElo "1914"]
[Annotator "NA"]
[PlyCount "68"]
[EventDate "2022.02.12"]
[EventType "swiss"]
[EventCountry "MEX"]
[SourceTitle "playchess.com"]
[Source "ChessBase"]
[SourceQuality "1"]
[TimeControl "5400+30"]

1. e4 {[%emt 0:00:03]} e5 {[%emt 0:00:25]} 2. Nf3 {[%emt 0:00:08]} Nc6 {[%emt 0:00:07]} 3. Bb5 {[%emt 0:00:05]} a6 {[%emt 0:00:29]} 4. Ba4 {[%emt 0:00:06]} Nf6 {[%emt 0:00:07]} 5. O-O {[%emt 0:00:16]} b5 {[%emt 0:00:40]} 6. Bb3 {[%emt 0:00:05]} Bc5 {[%emt 0:00:43]} 7. c3 {[%emt 0:01:50]} d6 {[%emt 0:00:06]} 8. a4 {[%emt 0:02:01]} Bb7 {[%emt 0:01:11]} 9. d4 {[%emt 0:00:37]} Bb6 {[%emt 0:00:17]} 10. Re1 {[%emt 0:00:50]} O-O {[%emt 0:00:52]} 11. Bg5 {[%emt 0:01:02]} h6 {[%emt 0:01:15]} 12. Bh4 {[%emt 0:00:10]} exd4 {[%emt 0:12:36]} 13. cxd4 {[%emt 0:00:39]} g5 {[%emt 0:00:15]} 14. Bg3 {[%emt 0:04:37]} Re8 {[%emt 0:02:19]} 15. d5 {[%emt 0:12:30]} Ne5 {[%emt 0:07:31]} 16. Nd4 {[%emt 0:06:08]} Ng6 {[%emt 0:04:18]} 17. f3 {[%emt 0:06:58]} Nh5 {[%emt 0:05:28]} 18. Bf2 {[%emt 0:00:09]} Qf6 {[%emt 0:00:09]} 19. axb5 {[%emt 0:01:10]} Nhf4 {[%emt 0:01:35]} 20. Ne2 {[%emt 0:11:12]} Bxf2+ {[%emt 0:00:30]} 21. Kxf2 {[%emt 0:00:30]} Nxg2 {[%emt 0:03:15]} 22. Rf1 {[%emt 0:02:55]} N2h4 {[%emt 0:09:46]} 23. Nd2 {[%emt 0:03:37]} Rxe4 {[%emt 0:13:22]} 24. Kg1 {[%emt 0:05:09]} Re3 {[%emt 0:03:39]} 25. Nc3 {[%emt 0:03:49]} Ne5 {[%emt 0:02:33]} 26. f4 {[%emt 0:02:08]} Nd3 {[%emt 0:03:01]} 27. Nde4 {[%emt 0:07:38]} Qd4 {[%emt 0:04:13]} 28. Ra4 {[%emt 0:01:31]} Qa7 {[%emt 0:00:30]} 29. Kh1 {[%emt 0:00:30]} Nxf4 {[%emt 0:00:30]} 30. Nf6+ {[%emt 0:00:30]} Kg7 {[%emt 0:00:30]} 31. Rfxf4 {[%emt 0:00:30]} gxf4 {[%emt 0:00:30]} 32. Qg4+ {[%emt 0:00:30]} Ng6 {[%emt 0:16:46]} 33. Nh5+ {[%emt 0:13:52]} Kh7 {[%emt 0:00:53]} 34. Qf5 {[%emt 0:01:31]} Re7 {[%emt 0:01:57]} 1/2-1/2

[Event "VIII Iberoamericano Mexico 2022"]
[Site "Mexico City"]
[Date "2022.02.18"]
[Round "7.29"]
[White "Arvizu Borchardt, David Ivan"]
[Black "Martin Del Campo Cardenas, Roberto Abel"]
[Result "0-1"]
[ECO "B67"]
[WhiteElo "1987"]
[BlackElo "2250"]
[Annotator "NA"]
[PlyCount "70"]
[EventDate "2022.02.12"]
[EventType "swiss"]
[EventCountry "MEX"]
[SourceTitle "playchess.com"]
[Source "ChessBase"]
[SourceQuality "1"]
[TimeControl "5400+30"]

1. e4 {[%emt 0:00:30]} c5 {[%emt 0:00:47]} 2. Nf3 {[%emt 0:00:02]} d6 {[%emt 0:00:05]} 3. d4 {[%emt 0:00:04]} cxd4 {[%emt 0:00:08]} 4. Nxd4 {[%emt 0:00:04]} Nf6 {[%emt 0:00:06]} 5. Nc3 {[%emt 0:00:03]} Nc6 {[%emt 0:00:10]} 6. Bg5 {[%emt 0:00:28]} e6 {[%emt 0:00:08]} 7. Qd2 {[%emt 0:00:08]} a6 {[%emt 0:00:06]} 8. O-O-O {[%emt 0:00:35]} Bd7 {[%emt 0:00:06]} 9. f4 {[%emt 0:00:54]} b5 {[%emt 0:00:57]} 10. Bxf6 {[%emt 0:00:19]} gxf6 {[%emt 0:00:06]} 11. Kb1 {[%emt 0:03:11]} Qb6 {[%emt 0:02:31]} 12. Nxc6 {[%emt 0:09:34]} Bxc6 {[%emt 0:00:30]} 13. f5 {[%emt 0:00:43]} b4 {[%emt 0:04:26]} 14. Ne2 {[%emt 0:00:06]} e5 {[%emt 0:00:46]} 15. Ng3 {[%emt 0:00:43]} Qc5 {[%emt 0:00:44]} 16. Be2 {[%emt 0:06:27]} a5 {[%emt 0:04:47]} 17. Nh5 {[%emt 0:04:41]} Be7 {[%emt 0:00:34]} 18. Ng7+ {[%emt 0:02:31]} Kd7 {[%emt 0:01:15]} 19. Bf3 {[%emt 0:01:40]} a4 {[%emt 0:05:01]} 20. Rc1 {[%emt 0:02:51]} a3 {[%emt 0:03:02]} 21. b3 {[%emt 0:01:11]} Bf8 {[%emt 0:00:45]} 22. Nh5 {[%emt 0:02:58]} Bh6 {[%emt 0:00:44]} 23. Qd3 {[%emt 0:04:06]} Bxc1 {[%emt 0:01:34]} 24. Rxc1 {[%emt 0:00:04]} Ke7 {[%emt 0:00:21]} 25. c4 {[%emt 0:01:46]} bxc3 {[%emt 0:02:49]} 26. Rxc3 {[%emt 0:00:23]} Bb5 {[%emt 0:00:58]} 27. Qd2 {[%emt 0:01:53]} Qg1+ {[%emt 0:01:16]} 28. Rc1 {[%emt 0:00:42]} Qb6 {[%emt 0:00:14]} 29. h4 {[%emt 0:02:41]} Rac8 {[%emt 0:03:47]} 30. Rd1 {[%emt 0:04:47]} Rhg8 {[%emt 0:03:00]} 31. Qh6 {[%emt 0:04:05]} Qf2 {[%emt 0:00:45]} 32. Qxf6+ {[%emt 0:06:13]} Ke8 {[%emt 0:00:17]} 33. Qh6 {[%emt 0:40:37]} Ke7 34. Qd2 {[%emt 0:00:30]} Bd3+ 35. Ka1 {[%emt 0:00:30]} Qxd2 {[%emt 1:05:15]} 0-1